bitfinex/quotes_ETHUSD_20250129
["timestamp","ask_amount","ask_price","bid_price","bid_amount"]
[1738121240323,7.02125,3115.7,3115.1,3.21008]
[1738121240528,3.0,3115.5,3115.1,0.05669377]
[1738121241046,4.02125,3115.7,3115.1,3.26680377]
[1738121241266,3.0,3115.6,3115.1,3.26680377]
[1738121241989,6.20966,3115.6,3115.1,3.26680377]
[1738121242528,0.8117,3115.7,3115.2,3.21006]
[1738121242851,5.37,3115.9,3115.3,4.08893676]
[1738121243035,5.37,3115.9,3115.5,3.20967]
[1738121243453,5.37,3115.9,3115.6,0.05604873]
[1738121244030,3.0,3116.0,3115.6,0.05604873]
[1738121244263,6.20927,3116.0,3115.6,0.05604873]
[1738121244776,6.20927,3116.0,3115.4,3.20984]
[1738121244939,6.20927,3116.0,3115.7,0.05604873]
[1738121245140,6.20927,3116.0,3115.4,3.20984]
[1738121245402,6.20927,3116.0,3115.8,0.05604873]
[1738121245553,6.20927,3116.0,3115.4,3.98077011]
[1738121245759,6.20927,3116.0,3115.9,0.05604873]
[1738121246266,6.20927,3116.0,3115.4,3.98077011]
[1738121246571,6.20927,3116.0,3115.9,0.05604873]
[1738121246757,3.20951,3115.8,3115.3,0.8223]
[1738121247154,0.7886,3115.9,3115.4,3.20985]
[1738121247483,6.20927,3116.0,3115.5,3.20974]
[1738121249784,3.0,3116.1,3115.6,3.20957]
[1738121251546,3.0,3116.1,3115.7,3.20947]
[1738121251759,3.0,3116.1,3115.7,3.851391]
[1738121252911,5.37,3116.7,3115.9,3.96464]
[1738121252912,3.20873,3116.5,3115.9,3.96464]
[1738121253083,0.7573,3116.6,3115.9,3.96464]
[1738121253248,3.0,3116.3,3115.9,0.7554]
[1738121254751,3.0,3116.3,3116.0,0.05494131]
[1738121255173,3.0,3116.3,3115.9,0.7554]
[1738121255352,3.0,3116.3,3116.1,0.05489927]
[1738121255561,3.0,3116.3,3115.9,0.7554]
[1738121255868,3.0,3116.3,3116.2,0.05489927]
[1738121256072,3.0,3116.3,3115.9,0.7554]
[1738121256247,3.0,3116.3,3116.0,0.05489927]
[1738121256559,3.0,3116.3,3115.9,0.7554]
[1738121256766,3.0,3116.3,3116.1,0.05431687]
[1738121256989,3.0,3116.3,3115.9,0.7554]
[1738121257191,3.0,3116.3,3116.2,0.05431687]
[1738121257380,3.96592,3116.6,3115.9,0.7554]
[1738121257381,3.0,3116.5,3115.9,0.7554]
[1738121257580,3.0,3116.3,3116.2,0.05431687]
[1738121257777,3.0,3116.3,3115.9,0.7554]
[1738121257981,6.20872,3116.5,3116.2,0.0542398]
[1738121258287,6.20872,3116.5,3116.3,0.05428184]
[1738121258466,6.20872,3116.5,3115.9,3.96472]
[1738121258794,6.20872,3116.5,3116.4,0.05428184]
[1738121258950,6.20872,3116.5,3115.9,3.96472]
[1738121258951,0.7573,3116.6,3116.0,3.20921]
[1738121259152,3.98573,3116.8,3116.4,0.05428184]
[1738121259388,3.98573,3116.8,3116.2,3.20896]
[1738121259572,3.0,3116.7,3116.5,0.05423279]
[1738121259778,3.20862,3116.6,3116.0,6.41831]
[1738121259963,3.20862,3116.6,3116.1,3.92970986]
[1738121260356,3.20862,3116.6,3116.1,3.20913]
[1738121261492,3.0,3116.7,3116.1,3.20913]
[1738121261696,3.0,3116.7,3116.1,6.41816]
[1738121262000,3.0,3116.7,3116.1,3.20903]
[1738121262160,6.20854,3116.7,3116.1,3.20903]
[1738121264816,3.20863,3116.6,3116.1,3.20903]
[1738121266337,3.20873,3116.5,3115.9,3.96469]
[1738121266481,3.20873,3116.5,3115.9,4.74564073]
[1738121266883,3.20873,3116.5,3115.9,7.95491073]
[1738121267084,3.20898,3116.3,3115.8,0.63531731]
[1738121267399,3.20898,3116.3,3115.7,3.20947]
[1738121269423,3.20898,3116.3,3115.7,6.41895]
[1738121269601,3.20898,3116.3,3115.8,3.20944]
[1738121269805,3.20898,3116.3,3115.8,3.26329449]
[1738121270703,3.0,3116.6,3116.1,3.20912]
[1738121271002,6.20864,3116.6,3116.1,3.20912]
[1738121271203,6.20864,3116.6,3116.2,0.05385449]
[1738121272495,9.41734,3116.6,3116.2,0.05385449]
[1738121272729,9.41734,3116.6,3115.9,6.4185]
[1738121272925,9.41734,3116.6,3116.3,0.05385449]
[1738121273234,6.20864,3116.6,3116.0,3.20919]
[1738121273435,6.20864,3116.6,3116.4,0.05385449]
[1738121273730,6.20864,3116.6,3116.5,0.05385449]
[1738121273930,6.20864,3116.6,3116.0,3.20919]
[1738121274108,6.20864,3116.6,3116.5,0.05385449]
[1738121274302,6.20864,3116.6,3116.1,4.02141]
[1738121274503,6.20864,3116.6,3116.5,0.05375642]
[1738121274698,6.20864,3116.6,3116.1,4.02141]
[1738121274898,6.20864,3116.6,3116.5,0.05375642]
[1738121275100,6.20864,3116.6,3116.1,4.02141]
[1738121275292,6.20864,3116.6,3116.5,0.05375642]
[1738121275502,6.20864,3116.6,3116.1,4.02141]
[1738121275799,6.20864,3116.6,3116.5,0.05375642]
[1738121276300,6.20864,3116.6,3116.1,4.02141]
[1738121276540,6.20864,3116.6,3116.5,0.05375642]
[1738121276713,6.20864,3116.6,3116.1,4.02141]
[1738121276913,6.20864,3116.6,3116.5,0.05375642]
[1738121277114,3.0,3116.6,3116.1,4.02141]
[1738121277315,3.0,3116.6,3116.5,0.05375642]
[1738121277529,3.0,3116.6,3116.1,0.8123]
[1738121277833,3.0,3116.6,3116.5,0.05346924]
[1738121278300,3.0,3116.6,3116.2,3.20901]
[1738121278501,3.0,3116.6,3116.5,0.05346924]
[1738121278815,3.0,3116.6,3116.2,3.20901]
[1738121279200,3.0,3116.6,3116.3,0.0533992]
[1738121279741,3.0,3116.6,3116.4,0.0533992]
[1738121279937,3.0,3116.6,3116.3,6.4177]
[1738121280105,3.0,3116.6,3116.5,0.0533992]
[1738121280460,3.0,3116.6,3116.3,3.20884]
[1738121280630,3.0,3116.6,3116.5,0.0533992]
[1738121280820,3.0,3116.6,3116.3,3.20884]
[1738121281019,3.0,3116.6,3116.5,0.0533992]
[1738121281345,3.0,3116.6,3116.1,4.02139]
[1738121281639,3.0,3116.6,3116.5,0.05337819]
[1738121282042,3.0,3116.6,3116.2,3.20903]
[1738121282522,3.0,3116.6,3116.3,0.05337819]
[1738121282729,3.0,3116.6,3116.2,3.20903]
[1738121282926,3.0,3116.7,3116.4,0.05337819]
[1738121283321,3.0,3116.7,3116.2,3.20903]
[1738121283534,3.0,3116.7,3116.5,0.05337819]
[1738121283738,3.0,3116.7,3116.2,3.20903]
[1738121283946,3.0,3116.7,3116.6,0.05337819]
[1738121284236,3.0,3116.7,3116.1,0.8123]
[1738121284413,3.20904,3116.2,3115.7,0.64938193]
[1738121284739,3.98775,3116.1,3115.8,0.05341321]
[1738121284939,3.98775,3116.1,3115.6,3.20959]
[1738121285140,0.7786,3116.1,3115.6,6.41918]
[1738121285327,0.7786,3116.1,3115.9,0.05341321]
[1738121285636,0.7786,3116.1,3115.7,0.05341321]
[1738121285840,3.20904,3116.2,3115.6,3.851508]
[1738121286028,3.20904,3116.2,3115.8,0.05341321]
[1738121286236,3.20916,3116.1,3115.6,3.20959]
[1738121286757,3.20916,3116.1,3115.7,0.05341321]
[1738121287123,7.00101,3116.3,3115.7,0.05341321]
[1738121287323,3.2091,3116.2,3115.7,0.05341321]
[1738121287751,3.20914,3116.1,3115.7,0.05341321]
[1738121287952,3.20914,3116.1,3115.5,0.63435687]
[1738121288129,3.20914,3116.1,3115.8,0.05341321]
[1738121288335,3.20914,3116.1,3115.5,4.31124656]
[1738121288537,3.20914,3116.1,3115.9,0.05341321]
[1738121289046,3.20914,3116.1,3115.5,3.84409687]
[1738121289221,3.20914,3116.1,3116.0,0.05341321]
[1738121289430,3.20914,3116.1,3115.5,3.84409687]
[1738121289654,3.20914,3116.1,3116.0,0.05341321]
[1738121289964,3.20914,3116.1,3116.0,0.05371441]
[1738121290775,3.20914,3116.1,3115.6,3.20962]
[1738121290973,3.20914,3116.1,3116.0,0.05371441]
[1738121291275,3.20914,3116.1,3115.6,3.20962]
[1738121291479,3.20905,3116.2,3116.0,0.05371441]
[1738121291772,6.20905,3116.2,3116.1,0.05371441]
[1738121291967,6.20905,3116.2,3115.6,3.20962]
[1738121292169,6.20905,3116.2,3116.1,0.05371441]
[1738121292376,6.20905,3116.2,3115.6,3.20962]
[1738121292545,6.20905,3116.2,3116.1,0.05371441]
[1738121292747,6.20903,3116.2,3115.6,3.20958]
[1738121292977,6.20903,3116.2,3115.6,6.41917]
[1738121293131,6.20903,3116.2,3115.7,3.26323441]
[1738121293332,3.0,3116.2,3115.7,3.26323441]
[1738121293758,3.0,3116.2,3115.8,4.03256]
[1738121293949,3.0,3116.2,3115.9,3.20931]
[1738121294343,3.0,3116.2,3116.0,0.0541207]
[1738121294581,3.0,3116.2,3115.9,3.20931]
[1738121294775,3.0,3116.2,3116.1,0.05402261]
[1738121294978,3.0,3116.2,3115.9,3.20931]
[1738121295282,3.0,3116.2,3116.1,0.05402261]
[1738121295433,3.0,3116.2,3116.0,0.05402962]
[1738121295650,3.0,3116.2,3116.1,0.05402261]
[1738121296394,3.0,3116.2,3115.8,0.8232]
[1738121296601,3.0,3116.2,3116.1,0.05399459]
[1738121296799,6.909121,3116.2,3115.7,3.20946]
[1738121296999,3.20915,3116.1,3115.5,3.20966]
[1738121297290,3.20915,3116.1,3115.5,6.41934]
[1738121297514,6.20903,3116.2,3115.6,3.20963]
[1738121299253,3.0,3116.2,3116.0,3.20923]
[1738121299897,3.0,3116.2,3116.1,0.0540156]
[1738121300109,9.36316,3116.8,3116.2,3.20893]
[1738121300404,6.1547,3116.8,3116.4,3.20881]
[1738121300622,0.7847,3116.8,3116.5,3.2087]
[1738121300774,0.7847,3117.1,3116.5,3.2627156]
[1738121301101,3.0,3117.1,3116.6,3.97884]
[1738121301471,3.0,3117.1,3116.6,4.03269448]
[1738121301774,0.7847,3117.3,3116.8,3.20839]
[1738121302150,3.0,3117.3,3117.0,3.20818]
[1738121302698,3.20764,3117.6,3116.9,0.05385448]
[1738121302699,6.1547,3117.7,3117.2,3.98719]
[1738121302987,3.0,3117.8,3117.3,3.26133528]
[1738121303157,4.02958,3118.1,3117.4,3.20778]
[1738121303354,4.432538,3118.1,3117.4,3.20778]
[1738121303581,4.432538,3118.1,3117.5,0.05345528]
[1738121303889,3.0,3118.0,3117.5,3.26113528]
[1738121304255,6.20719,3118.0,3117.5,0.05345528]
[1738121304472,3.0,3118.0,3117.5,0.05345528]
[1738121304676,6.2074,3117.8,3117.3,3.20788]
[1738121304878,6.2074,3117.8,3117.6,0.05289165]
[1738121305207,6.2074,3117.8,3117.7,0.05289165]
[1738121305560,6.2074,3117.8,3117.2,1.41556538]
[1738121305790,6.2074,3117.8,3117.7,0.05289165]
[1738121305985,7.22319438,3117.8,3117.2,1.41556538]
[1738121306290,6.2074,3117.8,3117.7,0.05289165]
[1738121306511,6.2074,3117.8,3117.2,1.41556538]
[1738121306720,6.2074,3117.8,3117.7,0.05289165]
[1738121307424,6.2074,3117.8,3117.2,1.41556538]
[1738121308082,6.2074,3117.8,3117.2,4.62355538]
[1738121308297,6.2074,3117.8,3117.3,0.05289165]
[1738121308615,6.2074,3117.8,3117.2,4.62355538]
[1738121308811,6.2074,3117.8,3117.4,0.05289165]
[1738121309010,6.2074,3117.8,3117.2,5.40671192]
[1738121309205,6.2074,3117.8,3117.2,1.41556538]
[1738121309459,3.20765,3117.6,3117.2,1.41556538]
[1738121309734,3.20765,3117.6,3116.9,0.7841]
[1738121309898,3.20765,3117.6,3116.6,3.93268845]
[1738121309899,8.92,3117.6,3116.6,3.99264]
[1738121310101,8.92,3117.6,3116.7,0.0525626]
[1738121310102,3.20801,3117.2,3116.7,0.0525626]
[1738121310304,3.20801,3117.2,3116.8,0.64429762]
[1738121310725,3.20812,3117.1,3116.8,0.64429762]
[1738121310933,3.20801,3117.2,3116.9,0.0525626]
[1738121312359,3.20792,3117.3,3116.9,0.0525626]
[1738121312559,10.132748,3117.6,3116.9,3.2608426]
[1738121312560,3.0,3117.5,3116.9,3.2608426]
[1738121312858,6.20769,3117.5,3116.9,3.2608426]
[1738121313165,3.0,3117.3,3116.9,0.0525626]
[1738121314746,3.20801,3117.2,3116.9,0.0525626]
[1738121315445,3.20811,3117.1,3116.9,0.0525626]
[1738121315760,3.20801,3117.2,3116.9,0.0525626]
[1738121316132,3.0,3117.5,3117.1,0.7695]
[1738121316514,3.0,3117.5,3117.2,0.05245056]
[1738121317330,5.37,3117.6,3117.2,0.05245056]
[1738121317817,11.57768,3117.6,3117.2,0.05245056]
[1738121319317,11.57761,3117.6,3117.2,0.05245056]
[1738121321333,6.20761,3117.6,3117.2,0.05245056]
[1738121321733,3.20774,3117.5,3117.2,0.05245056]
[1738121322061,6.20761,3117.6,3117.2,0.05245056]
[1738121323246,3.0,3117.6,3117.2,0.45546362]
[1738121323446,3.0,3117.6,3117.3,3.20788]
[1738121323846,3.0,3117.6,3117.4,0.05241553]
[1738121324360,3.0,3117.6,3117.5,0.05241553]
[1738121324567,3.0,3117.6,3117.1,3.97754]
[1738121324766,3.0,3117.6,3117.2,0.05241553]
[1738121325576,3.0,3117.6,3117.2,0.77622708]
[1738121328432,3.0,3117.6,3117.2,0.05241553]
[1738121329934,4.02232,3117.5,3117.2,0.05241553]
[1738121330136,4.02232,3117.5,3116.9,4.02708]
[1738121330349,4.02232,3117.5,3117.0,0.05239453]
[1738121330680,4.02232,3117.5,3117.0,0.70099181]
[1738121333248,4.02232,3117.5,3117.0,3.90919181]
[1738121333890,0.8146,3117.5,3117.0,3.90919181]
[1738121334045,3.0,3117.6,3117.2,3.20798]
[1738121334450,3.0,3117.6,3117.3,0.05248554]
[1738121334775,3.0,3117.6,3117.2,3.20798]
[1738121334971,3.0,3117.6,3117.3,0.05248554]
[1738121335176,3.0,3117.6,3117.2,3.20798]
[1738121335348,3.0,3117.6,3117.3,0.05248554]
[1738121335543,3.0,3117.6,3117.2,3.20798]
[1738121335741,3.0,3117.6,3117.3,0.05248554]
[1738121335961,3.0,3117.6,3117.2,3.94464685]
[1738121336163,3.0,3117.6,3117.3,0.05248554]
[1738121336471,3.0,3117.6,3117.2,3.94464685]
[1738121337005,3.0,3117.6,3117.3,0.05248554]
[1738121337210,3.0,3117.6,3117.2,3.94464685]
[1738121337517,3.0,3117.6,3117.4,0.05248554]
[1738121337713,3.0,3117.6,3117.2,3.20798]
[1738121337869,3.0,3117.6,3117.5,0.05248554]
[1738121338064,3.0,3117.6,3117.3,0.30010363]
[1738121338385,3.0,3117.6,3117.4,3.97722]
[1738121338699,3.0,3117.6,3117.4,0.82185254]
[1738121340604,3.0,3117.6,3117.4,0.05235254]
[1738121340776,3.0,3117.6,3117.3,3.20789]
[1738121340983,3.0,3117.6,3117.5,0.05235254]
[1738121341192,3.0,3117.6,3117.3,3.20789]
[1738121341396,3.0,3117.6,3117.5,0.05235254]
[1738121341607,3.0,3117.6,3117.3,3.20789]
[1738121341805,3.0,3117.6,3117.5,0.05235254]
[1738121342011,3.0,3117.6,3117.3,3.20789]
[1738121342308,3.0,3117.6,3117.5,0.05235254]
[1738121342502,3.0,3117.6,3117.4,0.30021996]
[1738121342706,3.0,3117.6,3117.5,0.05235254]
[1738121343007,3.0,3117.6,3117.4,0.30021996]
[1738121343206,3.0,3117.6,3117.5,0.05235254]
[1738121343431,3.0,3117.6,3117.4,0.30021996]
[1738121343573,3.0,3117.6,3117.5,0.05235254]
[1738121343772,3.0,3117.6,3117.3,3.605629]
[1738121344123,3.0,3117.6,3117.5,0.05235254]
[1738121344271,3.0,3117.6,3117.3,3.605629]
[1738121344471,3.0,3117.6,3117.5,0.05235254]
[1738121344702,3.0,3117.6,3117.3,3.605629]
[1738121344903,3.0,3117.6,3117.5,0.05235254]
[1738121345080,3.0,3117.6,3117.3,3.605629]
[1738121345280,3.0,3117.6,3117.5,0.05235254]
[1738121345481,0.8126,3117.5,3117.0,3.85679728]
[1738121345686,0.8126,3117.5,3117.0,4.64025901]
[1738121348112,0.8126,3117.5,3117.1,0.30036893]
[1738121349680,3.0,3117.6,3117.1,0.30036893]
[1738121349881,3.0,3117.6,3117.2,3.20799]
[1738121350314,3.0,3117.6,3117.2,3.50828893]
[1738121350611,3.0,3117.6,3117.3,0.35082889]
[1738121351026,3.0,3117.6,3117.2,3.50828893]
[1738121351922,3.0,3117.6,3117.2,3.20792]
[1738121354286,5.37,3118.0,3117.7,3.20749]
[1738121354491,0.8099,3118.3,3117.8,0.7787]
[1738121355125,4.532243,3118.3,3117.9,0.05207955]
[1738121355289,3.8099,3118.3,3117.9,0.05207955]
[1738121355489,0.8099,3118.3,3117.9,0.05207955]
[1738121356330,3.8099,3118.3,3117.9,0.05207955]
[1738121356824,0.8099,3118.3,3117.9,0.05207955]
[1738121357396,0.8099,3118.3,3117.9,3.25933955]
[1738121359251,4.01677,3118.3,3117.9,0.05207955]
[1738121360013,0.8099,3118.3,3117.9,3.25929955]
[1738121360237,0.8099,3118.3,3117.9,4.04737209]
[1738121363365,0.8099,3118.3,3117.9,3.25929955]
[1738121366499,3.0,3118.4,3117.9,3.25929955]
[1738121366662,3.0,3118.4,3117.9,3.25926955]
[1738121368800,6.20678,3118.4,3117.9,3.25926955]
[1738121369489,6.20678,3118.4,3117.9,0.05207955]
[1738121372289,3.0,3118.4,3118.0,3.20716]
[1738121372595,3.8099,3118.5,3118.1,0.05152666]
[1738121372774,7.01659,3118.5,3118.1,0.05152666]
[1738121376940,0.8161,3118.2,3118.1,0.05152666]
[1738121377268,4.02307,3118.2,3117.7,3.20749]
[1738121377629,4.02307,3118.2,3117.8,0.0513797]
[1738121377806,0.8161,3118.2,3117.7,6.41491]
[1738121378129,0.8161,3118.2,3117.8,3.2587597]
[1738121383132,0.8161,3118.2,3117.9,0.30055974]
[1738121383581,0.8161,3118.2,3118.0,0.05149867]
[1738121383834,0.8161,3118.2,3117.9,0.30055974]
[1738121384035,0.8161,3118.2,3118.0,0.05149867]
[1738121384331,0.8161,3118.2,3117.9,0.30055974]
[1738121384482,0.8161,3118.2,3118.1,0.05149867]
[1738121384685,0.8161,3118.2,3117.9,0.30055974]
[1738121385013,0.8161,3118.2,3117.8,3.20738]
[1738121385212,0.8161,3118.2,3118.0,0.05151965]
[1738121385407,0.8161,3118.2,3117.8,3.20738]
[1738121385615,0.8161,3118.2,3118.1,0.05151965]
[1738121385788,0.8161,3118.2,3117.8,3.20738]
[1738121386008,0.8161,3118.2,3118.1,0.05151965]
[1738121386219,0.8161,3118.2,3117.8,3.20738]
[1738121386538,0.8161,3118.2,3118.1,0.05151965]
[1738121386701,0.8161,3118.2,3117.8,3.20738]
[1738121387000,0.8161,3118.2,3118.1,0.05153365]
[1738121387333,0.8161,3118.2,3117.9,0.05153365]
[1738121387625,0.8161,3118.2,3118.0,0.05153365]
[1738121387785,0.8161,3118.2,3117.8,3.20738]
[1738121387984,0.8161,3118.2,3118.1,0.05153365]
[1738121388288,0.8161,3118.2,3117.8,3.20738]
[1738121388514,0.8161,3118.2,3118.1,0.05153365]
[1738121388695,0.8161,3118.2,3117.9,0.30057301]
[1738121389219,0.8161,3118.2,3118.0,0.05153365]
[1738121389402,0.8161,3118.2,3117.9,0.30057301]
[1738121389609,0.8161,3118.2,3118.1,0.05153365]
[1738121389921,0.8161,3118.2,3117.9,0.30057301]
[1738121390086,0.8161,3118.2,3118.1,0.05153365]
[1738121390617,0.8161,3118.2,3117.8,6.41462]
[1738121390912,0.8161,3118.2,3118.1,0.05153365]
[1738121391113,0.8161,3118.2,3117.9,3.20728]
[1738121391278,0.8161,3118.2,3118.1,0.05153365]
[1738121391481,0.8161,3118.2,3117.9,3.20728]
[1738121391682,0.8161,3118.2,3118.1,0.05153365]
[1738121392207,0.8161,3118.2,3117.9,3.20728]
[1738121392412,0.8161,3118.2,3118.1,0.05153365]
[1738121392587,0.8161,3118.2,3117.9,3.20728]
[1738121392923,0.8161,3118.2,3118.1,0.05153365]
[1738121393104,0.8161,3118.2,3117.9,3.20728]
[1738121393283,0.8161,3118.2,3118.1,0.05153365]
[1738121393483,0.8161,3118.2,3117.9,3.20728]
[1738121393706,0.8161,3118.2,3118.1,0.05153365]
[1738121393908,0.8161,3118.2,3117.9,3.20728]
[1738121394109,0.8161,3118.2,3118.1,0.05153365]
[1738121394380,0.8161,3118.2,3117.9,3.20728]
[1738121394585,3.0,3118.5,3118.1,0.05153365]
[1738121394799,3.0,3118.5,3118.1,3.20708]
[1738121395001,3.0,3118.5,3118.2,0.05153365]
[1738121395285,3.0,3118.5,3118.1,3.20708]
[1738121395909,3.0,3118.5,3118.2,0.05153365]
[1738121396296,3.0,3118.5,3118.0,0.8163]
[1738121396497,3.0,3118.5,3118.3,0.05153365]
[1738121396698,3.0,3118.5,3118.0,0.8163]
[1738121396923,3.0,3118.5,3118.4,0.05147065]
[1738121397100,3.0,3118.5,3118.0,0.8163]
[1738121397295,3.0,3118.5,3118.4,0.05147065]
[1738121397618,3.0,3118.5,3118.0,4.02346]
[1738121397619,6.20667,3118.5,3118.0,4.02346]
[1738121397817,6.20667,3118.5,3118.4,0.05147065]
[1738121398118,3.0,3118.5,3118.0,4.02346]
[1738121398319,3.0,3118.5,3118.1,0.30057961]
[1738121398518,6.20668,3118.5,3118.1,0.35205026]
[1738121400334,6.20668,3118.5,3118.1,0.05147065]
[1738121400625,3.0,3118.3,3118.1,0.05147065]
[1738121401199,0.7564,3118.2,3118.1,0.05147065]
[1738121401398,3.96337,3118.2,3118.1,0.05147065]
[1738121402653,7.980388,3118.2,3118.1,0.05147065]
[1738121402811,13.900388,3118.2,3118.1,0.05147065]
[1738121406600,3.20811,3117.1,3117.0,0.30063866]
[1738121406830,6.95871,3117.1,3117.0,0.30063866]
[1738121407036,8.525381,3117.1,3117.0,0.30063866]
[1738121407537,8.525381,3117.1,3116.6,2.542]
[1738121407538,3.20852,3116.7,3116.6,2.542]
[1738121408039,6.20852,3116.7,3116.6,2.542]
[1738121411340,3.0,3116.7,3116.6,2.542]
[1738121411544,5.37,3116.9,3116.6,3.3034]
[1738121411836,3.0,3116.8,3116.6,0.7614]
[1738121412035,6.20842,3116.8,3116.3,0.7614]
[1738121412242,4.909142,3116.8,3116.3,0.7614]
[1738121412436,3.20866,3116.6,3116.0,0.803]
[1738121413141,3.20866,3116.6,3116.0,4.01218]
[1738121413522,11.326052,3116.8,3116.1,3.2091]
[1738121414121,8.117572,3116.8,3116.1,3.2091]
[1738121414608,11.326082,3116.8,3116.1,3.2091]
[1738121417437,3.20853,3116.7,3116.2,0.03604607]
[1738121417768,3.20853,3116.7,3116.0,4.66604047]
[1738121418071,3.20853,3116.7,3116.1,3.24550498]
[1738121420165,8.117572,3116.8,3116.2,3.20902]
[1738121420344,3.0,3116.8,3116.4,0.7865]
[1738121420553,5.37,3116.9,3116.5,3.20864]
[1738121420743,5.37,3116.9,3116.6,0.03638198]
[1738121422270,3.20822,3117.0,3116.6,0.03638198]
[1738121422488,3.20833,3116.9,3116.6,0.03638198]
[1738121422651,3.20833,3116.9,3116.4,0.7865]
[1738121422860,3.97711,3116.8,3116.7,0.03619303]
[1738121423057,3.20852,3116.7,3116.2,3.20903]
[1738121423902,0.7687,3116.8,3116.2,3.20903]
[1738121424050,3.20833,3116.9,3116.3,3.20887]
[1738121424380,6.41674,3116.9,3116.2,3.67367905]
[1738121424682,3.20833,3116.9,3116.3,3.20891]
[1738121425643,3.20844,3116.8,3116.1,0.7836]
[1738121425840,3.0,3116.7,3116.2,3.20902]
[1738121426046,4.02725,3116.5,3116.0,3.20919]
[1738121427078,0.8185,3116.5,3116.0,3.20919]
[1738121427481,0.8185,3116.5,3116.0,3.20916]
[1738121427782,6.20847,3116.8,3116.3,3.20891]
[1738121428073,6.20847,3116.8,3116.1,3.20913]
[1738121428291,3.20864,3116.6,3116.1,3.20907]
[1738121430096,7.5069304,3116.8,3116.1,3.20907]
[1738121430254,10.7154404,3116.8,3116.2,0.03647997]
[1738121430455,7.5069304,3116.8,3116.2,0.03647997]
[1738121430655,3.20857,3116.7,3116.2,0.03647997]
[1738121431697,3.20857,3116.7,3116.2,3.24547997]
[1738121431850,3.20857,3116.7,3116.2,3.209]
[1738121432050,3.20857,3116.7,3116.3,0.03647997]
[1738121432502,3.20899,3116.3,3115.7,3.20947]
[1738121432703,3.20899,3116.3,3115.7,3.86144773]
[1738121432851,3.20892,3116.4,3115.7,3.86144773]
[1738121433056,3.20892,3116.4,3115.8,3.20944]
[1738121433650,6.41784,3116.4,3115.8,3.20942]
[1738121434016,3.20892,3116.4,3115.9,0.3003873]
[1738121434507,6.41783,3116.4,3115.9,0.3003873]
[1738121435310,3.20891,3116.4,3115.9,0.3003873]
[1738121435657,3.20891,3116.4,3115.8,3.20942]
[1738121435658,3.20893,3116.3,3116.0,0.3003873]
[1738121436020,3.98023,3116.1,3116.0,0.3003873]
[1738121436327,12.90023,3116.1,3116.0,0.3003873]
[1738121437213,12.90023,3116.1,3114.9,3.21032]
[1738121437214,0.7938,3115.4,3115.0,0.3003873]
[1738121437447,3.7938,3115.4,3115.0,0.3003873]
[1738121437743,3.21007,3115.2,3115.0,0.3003873]
[1738121438237,3.0,3115.1,3115.0,0.3003873]
[1738121438443,6.831167,3115.1,3115.0,0.3003873]
[1738121438590,3.21032,3115.0,3114.8,0.3003873]
[1738121438792,4.00417,3114.9,3114.8,0.3003873]
[1738121439686,4.55417,3114.9,3114.8,0.3003873]
[1738121439882,7.55417,3114.9,3114.8,0.3003873]
[1738121440103,8.9927197,3114.9,3114.8,0.3003873]
[1738121440843,4.55438,3114.7,3113.8,3.8497342]
[1738121441195,9.92438,3114.7,3113.8,3.8497342]
[1738121441351,3.0,3114.4,3113.8,3.8497342]
[1738121441502,3.0,3114.4,3113.9,3.25036717]
[1738121442461,6.21089,3114.4,3113.9,0.03898717]
[1738121448872,3.0,3114.6,3114.0,0.7997]
[1738121449167,3.2108,3114.5,3114.1,0.03965991]
[1738121449670,3.211,3114.3,3114.1,0.03965991]
[1738121449818,0.8297,3114.2,3113.8,0.7997]
[1738121450556,0.8297,3114.2,3113.6,7.22303]
[1738121451062,0.8297,3114.2,3113.8,3.2115]
[1738121451354,0.8297,3114.2,3113.1,3.46722]
[1738121451355,0.8297,3114.6,3114.1,3.21119]
[1738121451546,0.8297,3114.6,3114.2,3.21106]
[1738121451729,3.8297,3114.6,3114.2,3.21106]
[1738121451932,0.8297,3114.6,3114.0,6.42425]
[1738121452259,3.21099,3114.3,3113.7,4.669989]
[1738121452497,4.04098,3114.1,3113.4,4.01159]
[1738121452772,3.21162,3113.7,3113.4,0.63584799]
[1738121452942,4.02624,3113.6,3113.0,3.21226]
[1738121453144,0.8145,3113.6,3112.8,4.0016]
[1738121453360,3.21198,3113.4,3112.8,4.0016]
[1738121453556,3.21209,3113.3,3112.7,3.21262]
[1738121453735,3.0,3113.2,3112.6,2.543]
[1738121453933,0.7642,3113.0,3112.6,2.543]
[1738121454149,3.97654,3113.0,3112.6,2.543]
[1738121454561,0.7642,3113.0,3112.6,2.543]
[1738121454747,3.97655,3113.0,3112.6,2.543]
[1738121455072,0.7642,3113.0,3112.6,2.543]
[1738121457144,3.7642,3113.0,3112.6,2.543]
[1738121458577,3.7642,3113.0,3112.6,5.75568]
[1738121459273,3.7642,3113.0,3112.7,3.21263]
[1738121460072,3.7642,3113.0,3112.8,0.04032745]
[1738121460576,3.7642,3113.0,3112.9,0.04032745]
[1738121460779,3.7642,3113.0,3112.7,3.21263]
[1738121460780,0.7901,3113.3,3112.7,3.21263]
[1738121460987,5.37,3113.5,3113.1,3.21213]
[1738121461150,5.37,3113.5,3112.8,0.89705144]
[1738121461151,5.37,3113.5,3113.4,3.21192]
[1738121461481,0.7901,3113.9,3113.4,3.2522124]
[1738121461679,3.7901,3113.9,3113.5,3.2118]
[1738121461881,3.7901,3113.9,3113.6,3.21167]
[1738121462051,3.0,3113.9,3113.6,0.04005404]
[1738121462585,3.0,3113.9,3113.7,3.21156]